bitfinex-derivatives/quotes_SOLF0:USTF0_20250626
["timestamp","ask_amount","ask_price","bid_price","bid_amount"]
[1750906922553,26.1,146.63,146.5,65.54]
[1750906922554,26.1,146.63,146.53,8.5606747]
[1750906923052,65.52,146.62,146.53,8.5606747]
[1750906923456,65.52,146.62,146.58,6.8181]
[1750906923654,65.52,146.62,146.56,8.5606747]
[1750906924149,26.1,146.63,146.59,6.8177]
[1750906925054,26.1,146.63,146.56,8.5606747]
[1750906925454,26.1,146.63,146.55,2.4251]
[1750906925655,26.1,146.63,146.55,10.9857747]
[1750906927457,32.9165,146.63,146.57,6.8189]
[1750906927876,32.9165,146.63,146.54,2.3518]
[1750906927877,26.1,146.63,146.54,2.3518]
[1750906928199,26.1,146.63,146.58,8.5606747]
[1750906928554,26.1,146.63,146.62,6.8167]
[1750906928746,0.0001,146.63,146.62,6.8167]
[1750906928951,2.3925,146.69,146.61,8.5606747]
[1750906929151,2.3925,146.69,146.64,6.8157]
[1750906929957,2.3925,146.69,146.63,8.5606747]
[1750906930453,2.3925,146.69,146.61,8.5606747]
[1750906930953,2.3925,146.69,146.56,65.6]
[1750906931159,2.3925,146.69,146.62,8.5606747]
[1750906931955,6.814,146.68,146.62,15.3772747]
[1750906932155,2.3925,146.69,146.62,8.5606747]
[1750906932657,2.3925,146.69,146.65,6.8152]
[1750906932855,2.3925,146.69,146.62,8.5606747]
[1750906933968,2.3925,146.69,146.62,6.8163]
[1750906934366,6.8143,146.67,146.61,12.3928863]
[1750906934673,2.296,146.68,146.61,12.3928863]
[1750906934873,2.296,146.68,146.61,5.5758863]
[1750906936670,9.1102,146.68,146.62,6.8163]
[1750906936868,32.27,146.7,146.61,5.5758863]
[1750906937071,32.27,146.7,146.57,187.0]
[1750906937274,6.8137,146.69,146.62,5.5758863]
[1750906937774,6.8137,146.69,146.63,6.8158]
[1750906937972,39.083,146.7,146.57,187.0]
[1750906938168,39.083,146.7,146.63,5.5758863]
[1750906938371,32.27,146.7,146.65,6.8152]
[1750906938574,32.27,146.7,146.61,5.5758863]
[1750906938874,65.56,146.69,146.61,5.5758863]
[1750906939169,71.1358863,146.69,146.57,62.0]
[1750906939374,2.3716,146.68,146.59,5.5758863]
[1750906939572,6.8154,146.65,146.56,65.6]
[1750906939778,6.8154,146.65,146.58,5.5758863]
[1750906939978,2.3212,146.64,146.58,5.5758863]
[1750906940974,2.3212,146.64,146.6,6.8176]
[1750906941385,2.3212,146.64,146.56,71.1758863]
[1750906942073,9.137,146.64,146.56,71.1758863]
[1750906942270,2.3212,146.64,146.56,5.5758863]
[1750906942477,5.5758863,146.62,146.52,5.5758863]
[1750906942978,6.8167,146.62,146.54,5.5758863]
[1750906943376,63.6,146.63,146.56,5.5758863]
[1750906943577,63.6,146.63,146.58,6.8182]
[1750906944280,63.6,146.63,146.55,5.5758863]
[1750906944672,2.2856,146.67,146.58,6.8185]
[1750906944673,63.62,146.66,146.58,6.8185]
[1750906944878,65.9048,146.66,146.58,6.8185]
[1750906945072,65.9048,146.66,146.57,5.5758863]
[1750906945886,6.8154,146.65,146.59,5.5758863]
[1750906946088,65.9048,146.66,146.59,5.5758863]
[1750906946477,65.9048,146.66,146.6,6.8175]
[1750906946681,65.9048,146.66,146.52,125.0]
[1750906946882,6.8156,146.65,146.58,6.8181]
[1750906947079,6.8156,146.65,146.57,5.5758863]
[1750906947484,6.8156,146.65,146.59,6.8177]
[1750906947687,65.9048,146.66,146.59,5.5758863]
[1750906948083,65.9048,146.66,146.61,6.817]
[1750906948889,65.9048,146.66,146.52,125.0]
[1750906948890,65.9048,146.66,146.57,5.5758863]
[1750906949486,5.5758863,146.62,146.51,69.1758863]
[1750906949685,2.3198,146.61,146.51,69.1758863]
[1750906949882,2.3198,146.61,146.52,6.8209]
[1750906950189,2.3198,146.61,146.51,69.1758863]
[1750906950190,71.4794863,146.6,146.51,5.5758863]
[1750906950382,65.9036,146.6,146.51,5.5758863]
[1750906950583,9.1553,146.59,146.51,5.5758863]
[1750906950891,29.58,146.58,146.53,5.5758863]
[1750906951179,29.58,146.58,146.56,6.8193]
[1750906951586,29.58,146.58,146.54,5.5758863]
[1750906952485,29.58,146.58,146.55,6.8198]
[1750906952981,29.58,146.58,146.56,6.8194]
[1750906953783,29.58,146.58,146.57,6.8189]
[1750906957079,29.58,146.58,146.56,5.5758863]
[1750906957294,29.58,146.58,146.55,5.5758863]
[1750906958093,29.58,146.58,146.53,5.5758863]
[1750906958291,29.58,146.58,146.53,6.8205]
[1750906958596,29.58,146.58,146.52,5.5758863]
[1750906958788,6.8192,146.57,146.51,6.8217]
[1750906958994,9.2367,146.57,146.5,67.0958863]
[1750906959389,9.2367,146.57,146.51,6.8216]
[1750906959692,2.3331,146.56,146.51,6.8216]
[1750906960490,2.3331,146.56,146.46,12.45415589]
[1750906960690,2.3331,146.56,146.48,5.5758863]
[1750906961095,2.3331,146.56,146.51,6.8213]
[1750906961286,2.3331,146.56,146.5,5.5758863]
[1750906961794,2.3331,146.56,146.51,6.8216]
[1750906962390,9.1526,146.56,146.5,6.8221]
[1750906963194,9.1526,146.56,146.51,6.8217]
[1750906963195,2.3331,146.56,146.51,6.8217]
[1750906964595,6.8199,146.55,146.5,6.8221]
[1750906964787,2.3331,146.56,146.5,6.8221]
[1750906965482,9.1528,146.56,146.5,6.8221]
[1750906966292,2.3331,146.56,146.5,5.5758863]
[1750906966491,2.3331,146.56,146.52,5.5758863]
[1750906966692,29.58,146.58,146.54,5.5758863]
[1750906967283,29.58,146.58,146.55,6.8195]
[1750906968800,29.58,146.58,146.56,5.5758863]
[1750906969999,29.58,146.58,146.51,251.05785589]
[1750906970199,29.58,146.58,146.55,5.5758863]
[1750906970496,29.58,146.58,146.57,6.8189]
[1750906970895,29.58,146.58,146.57,12.3947863]
[1750906971502,589.18,146.7,146.57,5.5758863]
[1750906971503,59.68,146.68,146.57,5.5758863]
[1750906971708,59.68,146.68,146.6,5.5758863]
[1750906972093,59.68,146.68,146.55,72.13415589]
[1750906972401,6.8154,146.65,146.59,5.5758863]
[1750906972694,65.2558863,146.68,146.59,5.5758863]
[1750906972902,5.5758863,146.66,146.57,5.5758863]
[1750906973295,5.5758863,146.66,146.57,12.3944863]
[1750906973496,6.8166,146.63,146.57,5.5758863]
[1750906974598,6.8166,146.63,146.58,6.8184]
[1750906974802,6.8166,146.63,146.57,5.5758863]
[1750906975006,2.2643,146.62,146.52,12.45415589]
[1750906975210,2.2643,146.62,146.5,648.84]
[1750906975211,5.5758863,146.6,146.5,65.2358863]
[1750906975400,5.5758863,146.61,146.52,5.5758863]
[1750906975599,6.8188,146.58,146.52,12.3966863]
[1750906975900,5.5758863,146.61,146.52,5.5758863]
[1750906976095,6.819,146.57,146.51,5.5758863]
[1750906976698,66.5278,146.62,146.55,5.58115655]
[1750906976699,4.4934,146.62,146.55,5.58115655]
[1750906976901,4.4934,146.62,146.57,5.57878032]
[1750906977499,11.3103,146.62,146.57,5.57878032]
[1750906978200,6.8175,146.61,146.55,12.39858032]
[1750906979210,11.31,146.62,146.56,6.8192]
[1750906979507,4.4934,146.62,146.55,5.57878032]
[1750906979696,4.4934,146.62,146.57,5.57878032]
[1750906980601,2.2643,146.62,146.57,5.57878032]
[1750906980802,2.2643,146.62,146.59,5.57878032]
[1750906980998,8.25,146.64,146.59,5.57878032]
[1750906981406,8.25,146.64,146.63,5.57878032]
[1750906981604,8.25,146.64,146.63,12.39488032]
[1750906981902,2.2429,146.67,146.63,12.39488032]
[1750906982310,2.2429,146.67,146.63,5.57878032]
[1750906982716,9.0572,146.67,146.61,12.39568032]
[1750906983005,2.2429,146.67,146.6,59.66]
[1750906983207,6.8161,146.63,146.58,6.818]
[1750906983405,4.92130976,146.66,146.58,12.39678032]
[1750906983808,6.816,146.64,146.58,12.39678032]
[1750906984206,6.8167,146.62,146.58,5.57878032]
[1750906984404,4.92535881,146.64,146.56,65.23878032]
[1750906984700,13.80878032,146.65,146.57,6.8188]
[1750906985094,8.23,146.65,146.58,5.57878032]
[1750906985399,8.23,146.65,146.56,65.23878032]
[1750906985904,8.23,146.65,146.57,6.8188]
[1750906986100,8.23,146.65,146.6,5.57878032]
[1750906986612,4.95140187,146.64,146.56,65.23878032]
[1750906986907,2.2313,146.63,146.56,5.57878032]
[1750906987113,6.8169,146.62,146.57,6.8188]
[1750906988111,8.23,146.65,146.58,5.57878032]
[1750906988911,6.8158,146.64,146.59,6.8176]
[1750906990012,8.23,146.65,146.62,5.57611338]
[1750906990227,8.23,146.65,146.6,12.45415589]
[1750906990419,8.23,146.65,146.6,5.57312769]
[1750906990912,8.23,146.65,146.62,5.57312769]
[1750906991403,8.23,146.65,146.63,6.8161]
[1750906992309,8.23,146.65,146.64,6.8156]
[1750906992508,8.23,146.65,146.64,12.38872769]
[1750906992707,12.62212769,146.74,146.66,6.8147]
[1750906992912,12.62212769,146.74,146.66,12.38782769]
[1750906993106,6.8123,146.72,146.66,12.38782769]
[1750906993313,6.8123,146.72,146.66,5.57312769]
[1750906994112,6.8123,146.72,146.67,6.8142]
[1750906994315,6.8124,146.71,146.62,121.66]
[1750906994614,6.8124,146.71,146.65,5.57312769]
[1750906995114,11.9783275,146.74,146.65,5.57312769]
[1750906995507,5.57312769,146.7,146.62,125.0]
[1750906995707,65.21312769,146.7,146.61,5.57312769]
[1750906995915,65.21312769,146.7,146.58,143.02905589]
[1750906996218,59.64,146.7,146.64,5.57312769]
[1750906996516,59.64,146.7,146.62,12.38952769]
[1750906996820,59.64,146.7,146.62,5.57312769]
[1750906997203,66.689,146.74,146.64,5.57312769]
[1750906997407,66.689,146.74,146.68,5.57312769]
[1750906997813,73.5003,146.74,146.69,6.813]
[1750906998005,7.049,146.74,146.68,5.57312769]
[1750906998424,7.049,146.74,146.7,6.8127]
[1750906998608,7.049,146.74,146.68,5.57312769]
[1750906999316,7.049,146.74,146.7,6.8128]
[1750907001113,7.049,146.74,146.66,62.0]
[1750907001319,7.049,146.74,146.67,5.57312769]
[1750907001620,6.8118,146.73,146.68,6.8134]
[1750907001817,7.049,146.74,146.68,5.57312769]
[1750907003214,6.8115,146.73,146.68,12.38672769]
[1750907003614,6.8115,146.73,146.68,6.8136]
[1750907004014,6.8115,146.73,146.69,6.8133]
[1750907004213,13.86,146.74,146.69,12.38642769]
[1750907004417,13.86,146.74,146.69,5.57312769]
[1750907005234,7.049,146.74,146.65,296.7]
[1750907005426,7.049,146.74,146.67,5.57312769]
[1750907006122,6.8119,146.72,146.67,12.38702769]
[1750907006521,6.8146,146.67,146.57,133.95415589]
[1750907006720,5.57312769,146.69,146.57,123.9219]
[1750907006917,4.7041,146.66,146.58,5.57312769]
[1750907007427,61.9182,146.68,146.62,5.57312769]
[1750907008227,64.1859,146.72,146.64,5.57312769]
[1750907008715,11.5179,146.72,146.64,5.57312769]
[1750907009127,4.7059,146.72,146.67,6.8138]
[1750907010016,11.518,146.72,146.67,6.8138]
[1750907010528,4.7059,146.72,146.66,5.57312769]
[1750907011226,4.7059,146.72,146.62,59.48]
[1750907011418,10.27902769,146.72,146.62,65.05312769]
[1750907011723,10.27902769,146.72,146.64,5.57312769]
[1750907011724,4.7059,146.72,146.64,5.57312769]
[1750907011920,4.7059,146.72,146.66,5.57312769]
[1750907012114,59.48,146.79,146.7,5.57312769]
[1750907012322,4.6817,146.79,146.72,5.57312769]
[1750907012520,4.6817,146.79,146.7,125.0]
[1750907012735,4.6817,146.79,146.7,130.57312769]
[1750907012926,4.6817,146.79,146.7,5.57312769]
[1750907013224,59.48,146.78,146.72,5.57312769]
[1750907014027,59.48,146.78,146.68,62.0]
[1750907014028,59.48,146.78,146.71,5.57312769]
[1750907014223,6.8101,146.76,146.71,12.38512769]
[1750907014625,59.48,146.78,146.71,5.57312769]
[1750907015429,59.48,146.78,146.73,5.57312769]
[1750907015833,66.2893,146.78,146.73,12.38422769]
[1750907016022,59.48,146.78,146.73,5.57312769]
[1750907017136,66.2892,146.78,146.73,12.38422769]
[1750907017533,59.48,146.78,146.73,5.57312769]
[1750907017829,11.4905,146.79,146.73,5.57312769]
[1750907018230,4.6817,146.79,146.75,6.8105]
[1750907018831,4.6817,146.79,146.76,6.8099]
[1750907019036,2.3713,146.79,146.75,5.57312769]
[1750907019730,2.3713,146.79,146.73,125.0]
[1750907019731,64.084,146.85,146.77,5.57312769]
[1750907019924,64.084,146.85,146.73,296.26]
[1750907020128,5.57312769,146.83,146.73,176.83312769]
[1750907020333,6.8069,146.83,146.75,5.57312769]
[1750907020633,5.6405988,146.89,146.81,5.57312769]
[1750907020831,5.6405988,146.89,146.83,5.57312769]
[1750907022034,12.4449988,146.89,146.83,12.37952769]
[1750907022223,5.6405988,146.89,146.85,5.57312769]
[1750907022532,5.6405988,146.89,146.83,5.57312769]
[1750907023033,12.4446988,146.89,146.83,12.37952769]
[1750907023224,12.4446988,146.89,146.83,5.57312769]
[1750907023427,12.4446988,146.89,146.84,5.57312769]
[1750907023624,6.8046,146.88,146.84,5.57312769]
[1750907023828,5.6405988,146.89,146.86,5.57312769]
[1750907024034,5.6405988,146.89,146.88,5.57312769]
[1750907024529,5.6405988,146.89,146.83,5.57312769]
[1750907024927,5.6405988,146.89,146.87,5.57312769]
[1750907025535,5.6405988,146.89,146.88,6.8045]
[1750907025927,5.6405988,146.89,146.87,12.37772769]
[1750907026437,5.6405988,146.89,146.88,6.8045]
[1750907026622,5.6405988,146.89,146.87,5.57312769]
[1750907027132,1.18470102,147.03,146.87,5.57312769]
[1750907027133,59.44,147.0,146.91,6.803]
[1750907027432,4.6937,147.02,146.94,5.57312769]
[1750907027628,2.2731,147.01,146.92,5.57312769]
[1750907027936,5.02913113,147.0,146.92,5.57312769]
[1750907028138,10.60225882,147.0,146.9,5.57312769]
[1750907028336,5.02913113,146.99,146.9,5.57312769]
[1750907028530,5.02913113,146.98,146.9,5.57312769]
[1750907028740,12.37252769,146.99,146.91,6.8027]
[1750907028932,6.7994,146.99,146.86,64.5123]
[1750907029137,11.82823113,147.0,146.91,5.57312769]
[1750907029836,6.7995,146.99,146.93,6.8021]
[1750907030140,10.60225882,146.99,146.89,5.57312769]
[1750907030331,5.57312769,146.97,146.89,12.37702769]
[1750907030535,10.60225882,146.97,146.89,5.57312769]
[1750907030837,5.57312769,146.97,146.9,6.8032]
[1750907031032,6.8012,146.96,146.9,6.8032]
[1750907031431,2.4428,146.95,146.9,6.8032]
[1750907031828,9.2442,146.95,146.9,6.8032]
[1750907032134,8.01592769,146.95,146.86,64.67312769]
[1750907032339,2.3399,146.94,146.86,64.92675769]
[1750907032535,5.1133593,146.95,146.9,5.57312769]
[1750907032734,10.35582769,146.99,146.9,5.57312769]
[1750907032931,5.1133593,146.98,146.9,5.57312769]
[1750907033134,10.35582769,146.99,146.9,5.57312769]
[1750907033135,11.9141593,146.97,146.91,6.8031]
[1750907033339,6.8008,146.97,146.9,5.57312769]
[1750907033538,5.1133593,146.97,146.92,6.8023]
[1750907033743,69.43582769,146.99,146.92,6.8023]
[1750907033744,63.8627,146.99,146.92,5.57312769]
[1750907034140,63.8627,146.99,146.87,2.226]
[1750907034347,63.8627,146.99,146.92,5.57312769]
[1750907034641,4.7827,146.99,146.92,5.57312769]
[1750907034844,20.46,147.11,146.93,59.08]
[1750907035145,11.9032901,147.1,147.03,12.37072769]
[1750907035353,11.9032901,147.1,146.94,81.8253]
[1750907035354,4.5864,147.11,147.04,5.57312769]
[1750907035544,2.3686,147.11,147.04,5.57312769]
[1750907035740,2.3686,147.11,147.02,6.7978]
[1750907036039,2.2178,147.13,147.06,5.57312769]
[1750907036542,2.2178,147.13,147.02,2.2353]
[1750907036739,6.7947,147.1,147.03,5.54092105]
[1750907036941,7.32397119,147.13,147.05,5.54092105]
[1750907037130,2.2178,147.13,147.01,59.08]
[1750907037332,2.2178,147.13,147.06,5.54092105]
[1750907037736,6.795,147.09,147.01,70.4015]
[1750907037940,2.2178,147.13,147.04,5.54092105]
[1750907038145,5.54092105,147.12,146.97,59.06]
[1750907038437,7.75872105,147.13,147.0,6.7989]
[1750907038642,2.2444,147.11,147.03,5.54092105]
[1750907038841,59.06,147.1,147.01,5.54092105]
[1750907039340,59.06,147.1,147.02,5.54470341]
[1750907039946,59.06,147.1,146.97,59.06]
[1750907039947,59.06,147.1,147.0,5.54470341]
[1750907040138,5.54470341,147.08,146.98,5.54470341]
[1750907040341,59.06,147.1,146.98,5.54470341]
[1750907040543,64.60470341,147.1,147.0,5.54470341]
[1750907040736,64.60470341,147.1,146.99,5.54470341]
[1750907040935,59.06,147.1,146.99,5.54470341]
[1750907041141,2.2444,147.11,147.01,5.54470341]
[1750907041443,61.2844,147.11,147.04,5.54470341]
[1750907042045,6.7948,147.09,147.04,5.54470341]
[1750907042244,61.2844,147.11,147.06,5.54470341]
[1750907042648,6.7952,147.09,147.06,5.54470341]
[1750907042840,61.2844,147.11,147.02,59.04]
[1750907043043,61.2844,147.11,147.04,5.54470341]
[1750907043248,61.2844,147.11,147.02,59.04]
[1750907043548,61.2844,147.11,147.05,5.54470341]
[1750907043748,2.2444,147.11,147.04,6.797]
[1750907043947,2.2444,147.11,147.03,5.54470341]
[1750907044948,2.2444,147.11,147.04,5.54470341]
[1750907045146,6.7959,147.07,147.04,5.54470341]
[1750907045450,2.2444,147.11,147.03,5.54470341]
[1750907045645,6.7954,147.08,147.03,5.54470341]
[1750907045946,2.2444,147.11,147.03,5.54470341]
[1750907046445,2.2444,147.11,146.98,61.7649]
[1750907046656,7.78910341,147.11,147.02,5.54470341]
[1750907046840,6.7965,147.06,147.0,5.54470341]
[1750907047040,60.96,147.08,147.02,5.54470341]
[1750907047441,60.96,147.08,147.01,5.54470341]
[1750907047636,60.96,147.08,146.98,60.98]
[1750907047637,66.50470341,147.08,146.99,5.54470341]
[1750907047842,2.3453,147.07,146.99,5.54470341]
[1750907048048,6.7966,147.05,147.0,6.7989]
[1750907048247,2.3453,147.07,147.01,5.54470341]
[1750907048551,6.7962,147.06,147.01,5.54470341]
[1750907048849,2.3453,147.07,147.01,6.7983]
[1750907049049,2.3453,147.07,147.02,5.54470341]
[1750907049245,2.3453,147.07,147.01,6.7983]
[1750907049246,2.3453,147.07,147.03,5.54412251]
[1750907049450,2.2444,147.11,147.06,5.54190907]
[1750907049939,2.2444,147.11,147.06,12.33790907]
[1750907050142,2.2444,147.11,147.01,4.8024]
[1750907050339,2.2444,147.11,147.06,5.54190907]
[1750907051148,2.2444,147.11,147.01,4.8024]
[1750907051149,2.2444,147.11,147.07,5.54190907]
[1750907051741,2.2444,147.11,147.08,6.7949]
[1750907052051,63.1778,147.13,147.07,5.54190907]
[1750907052251,63.1778,147.13,147.1,6.7939]
[1750907052453,63.1778,147.13,147.07,5.54190907]
[1750907052941,69.9707,147.13,147.07,5.54190907]
[1750907053136,63.1778,147.13,147.06,5.54190907]
[1750907053446,63.1778,147.13,147.08,6.7952]
[1750907053948,69.9711,147.13,147.08,6.7952]
[1750907054254,63.1778,147.13,147.01,5.5894]
[1750907054548,63.1778,147.13,147.07,5.54190907]
[1750907054941,63.1778,147.13,147.07,12.33750907]
[1750907055142,63.1778,147.13,147.05,5.54190907]
[1750907055351,63.1778,147.13,147.06,6.7961]
[1750907055546,6.794,147.11,147.06,6.7961]
[1750907056144,6.7939,147.11,147.06,6.7961]
[1750907056954,6.7943,147.1,147.06,6.7961]
[1750907057256,63.1778,147.13,147.0,60.96]
[1750907057257,5.54190907,147.11,147.0,60.96]
[1750907057452,6.7956,147.08,147.02,5.54190907]
[1750907057645,2.4338,147.09,147.04,5.54190907]
[1750907057843,2.4338,147.09,147.06,5.54190907]
[1750907058155,2.4338,147.09,147.05,6.7962]
[1750907058454,2.4338,147.09,147.05,12.33810907]
[1750907058653,2.4338,147.09,147.03,6.7972]
[1750907059244,2.4338,147.09,147.02,5.54190907]
[1750907059945,6.7958,147.07,147.03,6.7975]
[1750907060148,2.4338,147.09,147.03,6.7975]
[1750907060346,2.4338,147.09,147.04,5.54190907]
[1750907061252,2.4338,147.09,147.0,60.96]
[1750907061552,2.4338,147.09,147.04,5.54190907]
[1750907062254,2.4338,147.09,147.05,6.7966]
[1750907062853,2.4338,147.09,147.04,12.33890907]
[1750907063154,2.4338,147.09,147.04,5.54190907]
[1750907063345,2.4338,147.09,147.06,6.7961]
[1750907063950,2.4338,147.09,147.05,6.7966]
[1750907064154,2.4338,147.09,147.04,5.54190907]
[1750907064453,2.4338,147.09,147.02,5.54190907]
[1750907064658,7.97570907,147.09,147.0,5.54190907]
[1750907064953,2.3583,147.08,147.0,5.54190907]
[1750907065154,59.1,147.07,147.0,5.54190907]
[1750907065663,59.1,147.07,147.01,5.54190907]
[1750907065856,2.3583,147.08,147.03,5.54190907]
[1750907066062,6.7953,147.08,147.03,5.54190907]
[1750907066752,9.2286,147.09,147.03,5.54190907]
[1750907067059,2.4338,147.09,147.03,5.54190907]
[1750907067358,2.4338,147.09,147.07,5.54190907]
[1750907067559,2.4338,147.09,147.05,5.54190907]
[1750907068759,59.1,147.14,147.07,5.54190907]
[1750907068956,2.2281,147.14,147.07,5.54190907]
[1750907069155,14.78556903,147.14,147.09,12.33660907]
[1750907069351,9.0207,147.14,147.09,12.33660907]
[1750907069556,2.2281,147.14,147.03,2.4402]
[1750907069763,2.2281,147.14,147.08,5.54190907]
[1750907070262,5.54190907,147.19,147.08,5.54190907]
[1750907070263,5.6405988,147.4,147.09,40.97]
[1750907070472,5.6405988,147.4,147.34,11.07678784]
[1750907070759,4.20049448,147.6,147.39,11.07678784]
[1750907070959,22.693,147.64,147.49,5.53839392]
[1750907070960,1.18058147,147.58,147.49,5.53839392]
[1750907071165,59.08,147.61,147.51,5.53839392]
[1750907071462,64.8508148,147.61,147.51,5.53839392]
[1750907071766,5.53839392,147.56,147.3,28.29279633]
[1750907072057,61.3097,147.55,147.45,5.53839392]
[1750907072258,2.2297,147.55,147.42,59.08]
[1750907072451,8.0005148,147.55,147.48,5.53839392]
[1750907072751,5.6498171,147.54,147.49,6.62363276]
[1750907072951,5.6498171,147.53,147.5,6.62363276]
[1750907073149,5.6498171,147.52,147.51,2.96013276]
[1750907073355,5.6498171,147.52,147.5,5.53839392]
[1750907073668,4.5458,147.64,147.5,17.85678784]
[1750907073963,8.0038148,147.64,147.6,5.53839392]
[1750907074263,5.7708148,147.64,147.54,67.47252708]
[1750907074460,5.7708148,147.64,147.53,59.04]
[1750907074658,8.43252708,147.62,147.46,59.04]
[1750907074860,8.43252708,147.61,147.46,59.04]
[1750907075162,5.7708148,147.63,147.45,59.04]
[1750907075460,5.7708148,147.63,147.47,8.43252708]
[1750907075651,8.43252708,147.59,147.5,6.7758]
[1750907075850,59.04,147.61,147.45,59.04]
[1750907076162,5.7708148,147.63,147.45,59.04]
[1750907076367,5.6405988,147.65,147.56,8.43252708]
[1750907076659,5.6405988,147.65,147.6,8.43252708]
[1750907076660,5.7708148,147.65,147.6,8.43252708]
[1750907076863,20.46,147.88,147.6,8.43252708]
[1750907077060,67.3352,148.43,147.62,8.43252708]
[1750907077262,8.43252708,147.95,147.8,8.43252708]
[1750907077567,6.822,148.08,147.8,61.16]
[1750907077863,2.3467,148.08,147.81,2.2824]
[1750907078060,2.3467,148.08,147.91,8.43252708]
[1750907078368,8.43252708,147.99,147.83,63.08]
[1750907078661,8.43252708,147.93,147.76,586.22]
[1750907078857,63.08,147.94,147.77,63.08]
[1750907079057,8.43252708,147.89,147.75,71.51252708]
[1750907079254,8.43252708,147.83,147.71,63.0]
[1750907079461,63.08,147.9,147.71,63.0]
[1750907079664,63.08,147.9,147.73,8.43252708]
[1750907079856,8.43252708,147.88,147.73,8.43252708]
[1750907080162,8.43252708,147.75,147.62,585.54]
[1750907080362,14.17075717,147.75,147.62,585.54]
[1750907080668,63.0,147.78,147.73,6.7652]
[1750907080861,14.17075717,147.81,147.68,63.0]
[1750907081161,14.17075717,147.79,147.73,6.7651]
[1750907081355,648.54,147.82,147.64,63.0]
[1750907081356,648.54,147.82,147.66,14.17075717]
[1750907081554,14.17075717,147.8,147.66,14.17075717]
[1750907081754,14.17075717,147.89,147.73,14.17075717]
[1750907081960,14.17075717,147.86,147.74,63.0]
[1750907082166,2.3818,147.91,147.74,63.0]
[1750907082367,14.17075717,147.88,147.74,63.0]
[1750907082667,14.17075717,147.87,147.74,63.0]
[1750907082867,14.17075717,147.87,147.78,6.7628]
[1750907083056,14.17075717,147.87,147.74,63.0]
[1750907083262,62.96,147.89,147.7,648.5]
[1750907083462,585.2,147.9,147.74,14.17075717]
[1750907083758,14.17075717,147.87,147.8,6.7619]
[1750907083964,14.17075717,147.88,147.71,14.17075717]
[1750907084865,585.2,147.9,147.71,14.17075717]
[1750907085064,2.3818,147.91,147.74,14.17075717]
[1750907085262,65.28,147.99,147.81,14.17075717]
[1750907085461,65.28,147.99,147.82,65.28]
[1750907085462,14.17075717,147.98,147.82,65.28]
[1750907085664,2.3669,147.92,147.82,79.45075717]
[1750907085971,2.3669,147.92,147.82,65.28]
[1750907086579,14.17075717,147.91,147.82,65.28]
[1750907086775,2.3669,147.92,147.82,65.28]
[1750907087875,16.53765717,147.92,147.82,65.28]
[1750907088070,2.3669,147.92,147.82,65.28]
[1750907088667,2.3669,147.92,147.8,6.7618]
[1750907088668,6.7576,147.9,147.8,6.7618]
[1750907089172,2.3669,147.92,147.79,584.92]
[1750907089675,2.3669,147.92,147.79,591.6822]
[1750907089676,14.17075717,147.89,147.79,591.6822]
[1750907089869,14.17075717,147.89,147.79,6.7622]
[1750907090069,14.17075717,147.89,147.72,584.66]
[1750907090070,65.26,147.88,147.75,65.26]
[1750907090276,2.2063,147.87,147.75,65.26]
[1750907090478,2.2063,147.87,147.75,79.43075717]
[1750907092076,2.3669,147.92,147.75,65.26]
[1750907092476,2.3669,147.92,147.78,14.17075717]
[1750907092781,14.17075717,147.9,147.74,14.17075717]
[1750907093075,69.8918,147.89,147.74,81.79075717]
[1750907093274,69.8918,147.89,147.8,6.7621]
[1750907093576,84.06255717,147.89,147.74,81.79075717]
[1750907093780,84.06255717,147.89,147.74,67.62]
[1750907094071,14.17075717,147.83,147.74,67.62]
[1750907094268,14.17075717,147.84,147.74,67.62]
[1750907094465,14.15183943,147.86,147.53,20.46]
[1750907094672,69.8102,147.85,147.67,14.15183943]
[1750907094871,14.15183943,147.83,147.67,14.15183943]